Workbook

Sheet Bilans uspeha na kraju godine
B1: Profit i gubitak Izveštaj
D3: PRETHODNI PERIOD | E3: BUDŽET | F3: TEKUĆI PERIOD | H3: TEKUĆI PERIOD KAO PROCENAT PRODAJE | I3: PROMENA U PROCENTIMA U ODNOSU NA PRETHODNI PERIOD | J3: PROMENA U PROCENTIMA U ODNOSU NA BUDŽET
B4: Prihod od prodaje
B5: Proizvod/Usluga 1 | D5: 40 | E5: 50 | F5: 45 | H5: =IFERROR(SalesRevenue[[#This Row],[Tekući period]]/SUBTOTAL(109,SalesRevenue[Tekući period]),0) -> 100.0% | I5: =IFERROR(SalesRevenue[[#This Row],[Tekući period]]/SalesRevenue[[#This Row],[Prethodni period]]-1,0) -> 12.5% | J5: =IFERROR(SalesRevenue[[#This Row],[Tekući period]]/SalesRevenue[[#This Row],[Budžet]]-1,0) -> -10.0%
B6: Proizvod/Usluga 2 | H6: =IFERROR(SalesRevenue[[#This Row],[Tekući period]]/SUBTOTAL(109,SalesRevenue[Tekući period]),0) -> 0 | I6: =IFERROR(SalesRevenue[[#This Row],[Tekući period]]/SalesRevenue[[#This Row],[Prethodni period]]-1,0) -> 0 | J6: =IFERROR(SalesRevenue[[#This Row],[Tekući period]]/SalesRevenue[[#This Row],[Budžet]]-1,0) -> 0
B7: Proizvod/Usluga 3 | H7: =IFERROR(SalesRevenue[[#This Row],[Tekući period]]/SUBTOTAL(109,SalesRevenue[Tekući period]),0) -> 0 | I7: =IFERROR(SalesRevenue[[#This Row],[Tekući period]]/SalesRevenue[[#This Row],[Prethodni period]]-1,0) -> 0 | J7: =IFERROR(SalesRevenue[[#This Row],[Tekući period]]/SalesRevenue[[#This Row],[Budžet]]-1,0) -> 0
B8: Proizvod/Usluga 4 | H8: =IFERROR(SalesRevenue[[#This Row],[Tekući period]]/SUBTOTAL(109,SalesRevenue[Tekući period]),0) -> 0 | I8: =IFERROR(SalesRevenue[[#This Row],[Tekući period]]/SalesRevenue[[#This Row],[Prethodni period]]-1,0) -> 0 | J8: =IFERROR(SalesRevenue[[#This Row],[Tekući period]]/SalesRevenue[[#This Row],[Budžet]]-1,0) -> 0
B9: Ukupno | D9: =SUBTOTAL(109,SalesRevenue[Prethodni period]) -> 40 | E9: =SUBTOTAL(109,SalesRevenue[Budžet]) -> 50 | F9: =SUBTOTAL(109,SalesRevenue[Tekući period]) -> 45 | H9: =IFERROR(SalesRevenue[[#Totals],[Tekući period]]/SalesRevenue[[#Totals],[Tekući period]],0) -> 100.0% | I9: =IFERROR(SalesRevenue[[#Totals],[Tekući period]]/SalesRevenue[[#Totals],[Prethodni period]]-1,0) -> 12.5% | J9: =IFERROR(SalesRevenue[[#Totals],[Tekući period]]/SalesRevenue[[#Totals],[Budžet]]-1,0) -> -10.0%
B11: Vrednost prodaje
B12: Proizvod/Usluga 1 | E12: 2 | F12: 3 | H12: =IFERROR(CostOfSales[[#This Row],[Tekući period]]/SUBTOTAL(109,SalesRevenue[Tekući period]),0) -> 6.7% | I12: =IFERROR(CostOfSales[[#This Row],[Tekući period]]/CostOfSales[[#This Row],[Prethodni period]]-1,0) -> 0 | J12: =IFERROR(CostOfSales[[#This Row],[Tekući period]]/CostOfSales[[#This Row],[Budžet]]-1,0) -> 50.0%
B13: Proizvod/Usluga 2 | E13: 5 | F13: 3 | H13: =IFERROR(CostOfSales[[#This Row],[Tekući period]]/SUBTOTAL(109,SalesRevenue[Tekući period]),0) -> 6.7% | I13: =IFERROR(CostOfSales[[#This Row],[Tekući period]]/CostOfSales[[#This Row],[Prethodni period]]-1,0) -> 0 | J13: =IFERROR(CostOfSales[[#This Row],[Tekući period]]/CostOfSales[[#This Row],[Budžet]]-1,0) -> -40.0%
B14: Proizvod/Usluga 3 | F14: 1 | H14: =IFERROR(CostOfSales[[#This Row],[Tekući period]]/SUBTOTAL(109,SalesRevenue[Tekući period]),0) -> 2.2% | I14: =IFERROR(CostOfSales[[#This Row],[Tekući period]]/CostOfSales[[#This Row],[Prethodni period]]-1,0) -> 0 | J14: =IFERROR(CostOfSales[[#This Row],[Tekući period]]/CostOfSales[[#This Row],[Budžet]]-1,0) -> 0
B15: Proizvod/Usluga 4 | H15: =IFERROR(CostOfSales[[#This Row],[Tekući period]]/SUBTOTAL(109,SalesRevenue[Tekući period]),0) -> 0 | I15: =IFERROR(CostOfSales[[#This Row],[Tekući period]]/CostOfSales[[#This Row],[Prethodni period]]-1,0) -> 0 | J15: =IFERROR(CostOfSales[[#This Row],[Tekući period]]/CostOfSales[[#This Row],[Budžet]]-1,0) -> 0
B16: Ukupno | D16: =SUBTOTAL(109,CostOfSales[Prethodni period]) -> 0 | E16: =SUBTOTAL(109,CostOfSales[Budžet]) -> 7 | F16: =SUBTOTAL(109,CostOfSales[Tekući period]) -> 7 | H16: =IFERROR(CostOfSales[[#Totals],[Tekući period]]/SUBTOTAL(109,SalesRevenue[Tekući period]),0) -> 15.6% | I16: =IFERROR(CostOfSales[[#Totals],[Tekući period]]/CostOfSales[[#Totals],[Prethodni period]]-1,0) -> 0 | J16: =IFERROR(CostOfSales[[#Totals],[Tekući period]]/CostOfSales[[#Totals],[Budžet]]-1,0) -> 0
B18: Bruto dohodak | D18: =SUM(SalesRevenue[Prethodni period])-SUM(CostOfSales[Prethodni period]) -> 40 | E18: =SUM(SalesRevenue[Budžet])-SUM(CostOfSales[Budžet]) -> 43 | F18: =SUM(SalesRevenue[Tekući period])-SUM(CostOfSales[Tekući period]) -> 38 | H18: =IFERROR(F18/SUBTOTAL(109,SalesRevenue[Tekući period]),0) -> 84.4% | I18: =IFERROR(F18/D18-1,0) -> -5.0% | J18: =IFERROR(F18/E18-1,0) -> -11.6%
B20: Operativni troškovi: prodaja i marketing
B21: Reklamiranje | E21: 22 | F21: 19 | H21: =IFERROR(SalesAndMarketing[[#This Row],[Tekući period]]/SUBTOTAL(109,SalesRevenue[Tekući period]),0) -> 42.2% | I21: =IFERROR(SalesAndMarketing[[#This Row],[Tekući period]]/SalesAndMarketing[[#This Row],[Prethodni period]]-1,0) -> 0 | J21: =IFERROR(SalesAndMarketing[[#This Row],[Tekući period]]/SalesAndMarketing[[#This Row],[Budžet]]-1,0) -> -13.6%
B22: Direktni marketing | H22: =IFERROR(SalesAndMarketing[[#This Row],[Tekući period]]/SUBTOTAL(109,SalesRevenue[Tekući period]),0) -> 0 | I22: =IFERROR(SalesAndMarketing[[#This Row],[Tekući period]]/SalesAndMarketing[[#This Row],[Prethodni period]]-1,0) -> 0 | J22: =IFERROR(SalesAndMarketing[[#This Row],[Tekući period]]/SalesAndMarketing[[#This Row],[Budžet]]-1,0) -> 0
B23: Ostali troškovi (navesti) | H23: =IFERROR(SalesAndMarketing[[#This Row],[Tekući period]]/SUBTOTAL(109,SalesRevenue[Tekući period]),0) -> 0 | I23: =IFERROR(SalesAndMarketing[[#This Row],[Tekući period]]/SalesAndMarketing[[#This Row],[Prethodni period]]-1,0) -> 0 | J23: =IFERROR(SalesAndMarketing[[#This Row],[Tekući period]]/SalesAndMarketing[[#This Row],[Budžet]]-1,0) -> 0
B24: Ukupno | D24: =SUBTOTAL(109,SalesAndMarketing[Prethodni period]) -> 0 | E24: =SUBTOTAL(109,SalesAndMarketing[Budžet]) -> 22 | F24: =SUBTOTAL(109,SalesAndMarketing[Tekući period]) -> 19 | H24: =IFERROR(SalesAndMarketing[[#Totals],[Tekući period]]/SUBTOTAL(109,SalesRevenue[Tekući period]),0) -> 42.2% | I24: =IFERROR(SalesAndMarketing[[#Totals],[Tekući period]]/SalesAndMarketing[[#Totals],[Prethodni period]]-1,0) -> 0 | J24: =IFERROR(SalesAndMarketing[[#Totals],[Tekući period]]/SalesAndMarketing[[#Totals],[Budžet]]-1,0) -> -13.6%
B26: Operativni troškovi: opšti i administrativni
B27: Plate | E27: 56 | F27: 51 | H27: =IFERROR(GeneralAndAdministrative[[#This Row],[Tekući period]]/SUBTOTAL(109,SalesRevenue[Tekući period]),0) -> 113.3% | I27: =IFERROR(GeneralAndAdministrative[[#This Row],[Tekući period]]/GeneralAndAdministrative[[#This Row],[Prethodni period]]-1,0) -> 0 | J27: =IFERROR(GeneralAndAdministrative[[#This Row],[Tekući period]]/GeneralAndAdministrative[[#This Row],[Budžet]]-1,0) -> -8.9%
B28: Spoljne usluge | H28: =IFERROR(GeneralAndAdministrative[[#This Row],[Tekući period]]/SUBTOTAL(109,SalesRevenue[Tekući period]),0) -> 0 | I28: =IFERROR(GeneralAndAdministrative[[#This Row],[Tekući period]]/GeneralAndAdministrative[[#This Row],[Prethodni period]]-1,0) -> 0 | J28: =IFERROR(GeneralAndAdministrative[[#This Row],[Tekući period]]/GeneralAndAdministrative[[#This Row],[Budžet]]-1,0) -> 0
B29: Zalihe | H29: =IFERROR(GeneralAndAdministrative[[#This Row],[Tekući period]]/SUBTOTAL(109,SalesRevenue[Tekući period]),0) -> 0 | I29: =IFERROR(GeneralAndAdministrative[[#This Row],[Tekući period]]/GeneralAndAdministrative[[#This Row],[Prethodni period]]-1,0) -> 0 | J29: =IFERROR(GeneralAndAdministrative[[#This Row],[Tekući period]]/GeneralAndAdministrative[[#This Row],[Budžet]]-1,0) -> 0
B30: Obroci i zabava | H30: =IFERROR(GeneralAndAdministrative[[#This Row],[Tekući period]]/SUBTOTAL(109,SalesRevenue[Tekući period]),0) -> 0 | I30: =IFERROR(GeneralAndAdministrative[[#This Row],[Tekući period]]/GeneralAndAdministrative[[#This Row],[Prethodni period]]-1,0) -> 0 | J30: =IFERROR(GeneralAndAdministrative[[#This Row],[Tekući period]]/GeneralAndAdministrative[[#This Row],[Budžet]]-1,0) -> 0
B31: Kirija | H31: =IFERROR(GeneralAndAdministrative[[#This Row],[Tekući period]]/SUBTOTAL(109,SalesRevenue[Tekući period]),0) -> 0 | I31: =IFERROR(GeneralAndAdministrative[[#This Row],[Tekući period]]/GeneralAndAdministrative[[#This Row],[Prethodni period]]-1,0) -> 0 | J31: =IFERROR(GeneralAndAdministrative[[#This Row],[Tekući period]]/GeneralAndAdministrative[[#This Row],[Budžet]]-1,0) -> 0
B32: Telefon | H32: =IFERROR(GeneralAndAdministrative[[#This Row],[Tekući period]]/SUBTOTAL(109,SalesRevenue[Tekući period]),0) -> 0 | I32: =IFERROR(GeneralAndAdministrative[[#This Row],[Tekući period]]/GeneralAndAdministrative[[#This Row],[Prethodni period]]-1,0) -> 0 | J32: =IFERROR(GeneralAndAdministrative[[#This Row],[Tekući period]]/GeneralAndAdministrative[[#This Row],[Budžet]]-1,0) -> 0
B33: Režije | H33: =IFERROR(GeneralAndAdministrative[[#This Row],[Tekući period]]/SUBTOTAL(109,SalesRevenue[Tekući period]),0) -> 0 | I33: =IFERROR(GeneralAndAdministrative[[#This Row],[Tekući period]]/GeneralAndAdministrative[[#This Row],[Prethodni period]]-1,0) -> 0 | J33: =IFERROR(GeneralAndAdministrative[[#This Row],[Tekući period]]/GeneralAndAdministrative[[#This Row],[Budžet]]-1,0) -> 0
B34: Amortizacija | H34: =IFERROR(GeneralAndAdministrative[[#This Row],[Tekući period]]/SUBTOTAL(109,SalesRevenue[Tekući period]),0) -> 0 | I34: =IFERROR(GeneralAndAdministrative[[#This Row],[Tekući period]]/GeneralAndAdministrative[[#This Row],[Prethodni period]]-1,0) -> 0 | J34: =IFERROR(GeneralAndAdministrative[[#This Row],[Tekući period]]/GeneralAndAdministrative[[#This Row],[Budžet]]-1,0) -> 0
B35: Osiguranje | H35: =IFERROR(GeneralAndAdministrative[[#This Row],[Tekući period]]/SUBTOTAL(109,SalesRevenue[Tekući period]),0) -> 0 | I35: =IFERROR(GeneralAndAdministrative[[#This Row],[Tekući period]]/GeneralAndAdministrative[[#This Row],[Prethodni period]]-1,0) -> 0 | J35: =IFERROR(GeneralAndAdministrative[[#This Row],[Tekući period]]/GeneralAndAdministrative[[#This Row],[Budžet]]-1,0) -> 0
B36: Popravke i održavanje | H36: =IFERROR(GeneralAndAdministrative[[#This Row],[Tekući period]]/SUBTOTAL(109,SalesRevenue[Tekući period]),0) -> 0 | I36: =IFERROR(GeneralAndAdministrative[[#This Row],[Tekući period]]/GeneralAndAdministrative[[#This Row],[Prethodni period]]-1,0) -> 0 | J36: =IFERROR(GeneralAndAdministrative[[#This Row],[Tekući period]]/GeneralAndAdministrative[[#This Row],[Budžet]]-1,0) -> 0
B37: Ostali troškovi (navesti) | H37: =IFERROR(GeneralAndAdministrative[[#This Row],[Tekući period]]/SUBTOTAL(109,SalesRevenue[Tekući period]),0) -> 0 | I37: =IFERROR(GeneralAndAdministrative[[#This Row],[Tekući period]]/GeneralAndAdministrative[[#This Row],[Prethodni period]]-1,0) -> 0 | J37: =IFERROR(GeneralAndAdministrative[[#This Row],[Tekući period]]/GeneralAndAdministrative[[#This Row],[Budžet]]-1,0) -> 0
B38: Ukupno | D38: =SUBTOTAL(109,GeneralAndAdministrative[Prethodni period]) -> 0 | E38: =SUBTOTAL(109,GeneralAndAdministrative[Budžet]) -> 56 | F38: =SUBTOTAL(109,GeneralAndAdministrative[Tekući period]) -> 51 | H38: =IFERROR(GeneralAndAdministrative[[#Totals],[Tekući period]]/SUBTOTAL(109,SalesRevenue[Tekući period]),0) -> 113.3% | I38: =IFERROR(GeneralAndAdministrative[[#Totals],[Tekući period]]/GeneralAndAdministrative[[#Totals],[Prethodni period]]-1,0) -> 0 | J38: =IFERROR(GeneralAndAdministrative[[#Totals],[Tekući period]]/GeneralAndAdministrative[[#Totals],[Budžet]]-1,0) -> -8.9%
B40: Operativni troškovi: drugi
B41: Drugi operativni trošak 1 | E41: 10 | H41: =IFERROR(OtherOperatingExpenseCategory[[#This Row],[Tekući period]]/SUBTOTAL(109,SalesRevenue[Tekući period]),0) -> 0 | I41: =IFERROR(OtherOperatingExpenseCategory[[#This Row],[Tekući period]]/OtherOperatingExpenseCategory[[#This Row],[Prethodni period]]-1,0) -> 0 | J41: =IFERROR(OtherOperatingExpenseCategory[[#This Row],[Tekući period]]/OtherOperatingExpenseCategory[[#This Row],[Budžet]]-1,0) -> -100.0%
B42: Drugi operativni trošak 2 | H42: =IFERROR(OtherOperatingExpenseCategory[[#This Row],[Tekući period]]/SUBTOTAL(109,SalesRevenue[Tekući period]),0) -> 0 | I42: =IFERROR(OtherOperatingExpenseCategory[[#This Row],[Tekući period]]/OtherOperatingExpenseCategory[[#This Row],[Prethodni period]]-1,0) -> 0 | J42: =IFERROR(OtherOperatingExpenseCategory[[#This Row],[Tekući period]]/OtherOperatingExpenseCategory[[#This Row],[Budžet]]-1,0) -> 0
B43: Ukupno | D43: =SUBTOTAL(109,OtherOperatingExpenseCategory[Prethodni period]) -> 0 | E43: =SUBTOTAL(109,OtherOperatingExpenseCategory[Budžet]) -> 10 | F43: =SUBTOTAL(109,OtherOperatingExpenseCategory[Tekući period]) -> 0 | H43: =IFERROR(OtherOperatingExpenseCategory[[#Totals],[Tekući period]]/SUBTOTAL(109,SalesRevenue[Tekući period]),0) -> 0 | I43: =IFERROR(OtherOperatingExpenseCategory[[#Totals],[Tekući period]]/OtherOperatingExpenseCategory[[#Totals],[Prethodni period]]-1,0) -> 0 | J43: =IFERROR(OtherOperatingExpenseCategory[[#Totals],[Tekući period]]/OtherOperatingExpenseCategory[[#Totals],[Budžet]]-1,0) -> -100.0%
B45: Ukupni troškovi poslovanja | D45: =SUM(SalesAndMarketing[Prethodni period],GeneralAndAdministrative[Prethodni period],OtherOperatingExpenseCategory[Prethodni period]) -> 0 | E45: =SUM(SalesAndMarketing[Budžet],GeneralAndAdministrative[Budžet],OtherOperatingExpenseCategory[Budžet]) -> 88 | F45: =SUM(SalesAndMarketing[Tekući period],GeneralAndAdministrative[Tekući period],OtherOperatingExpenseCategory[Tekući period]) -> 70 | H45: =IFERROR(F45/SUBTOTAL(109,SalesRevenue[Tekući period]),0) -> 155.6% | I45: =IFERROR(F45/D45-1,0) -> 0 | J45: =IFERROR(F45/E45-1,0) -> -20.5%
B47: Prihod od poslovanja | D47: =D18-D45 -> 40 | E47: =E18-E45 -> -45 | F47: =F18-F45 -> -32 | H47: =IFERROR(F47/SUBTOTAL(109,SalesRevenue[Tekući period]),0) -> -71.1% | I47: =IFERROR(IF(D47=F47,0,IF(F47>D47,ABS((F47/D47)-1),IF(AND(F47<D47,D47<0),-((F47/D47)-1),(F47/D47)-1))),0) -> -180.0% | J47: =IFERROR(IF(E47=F47,0,IF(F47>E47,ABS((F47/E47)-1),IF(AND(F47<E47,E47<0),-((F47/E47)-1),(F47/E47)-1))),0) -> 28.9%
B49: Drugi prihod | H49: =IFERROR(F49/SUBTOTAL(109,SalesRevenue[Tekući period]),0) -> 0 | I49: =IFERROR(F49/D49-1,0) -> 0 | J49: =IFERROR(F49/E49-1,0) -> 0
B51: Porezi
B52: Porezi na prihod | E52: 32 | F52: 30 | H52: =IFERROR(Porez[[#This Row],[Tekući period]]/SUBTOTAL(109,SalesRevenue[Tekući period]),0) -> 66.7% | I52: =IFERROR(Porez[[#This Row],[Tekući period]]/Porez[[#This Row],[Prethodni period]]-1,0) -> 0 | J52: =IFERROR(Porez[[#This Row],[Tekući period]]/Porez[[#This Row],[Budžet]]-1,0) -> -6.3%
B53: Porezi na plate | H53: =IFERROR(Porez[[#This Row],[Tekući period]]/SUBTOTAL(109,SalesRevenue[Tekući period]),0) -> 0 | I53: =IFERROR(Porez[[#This Row],[Tekući period]]/Porez[[#This Row],[Prethodni period]]-1,0) -> 0 | J53: =IFERROR(Porez[[#This Row],[Tekući period]]/Porez[[#This Row],[Budžet]]-1,0) -> 0
B54: Porezi na nekretnine | H54: =IFERROR(Porez[[#This Row],[Tekući period]]/SUBTOTAL(109,SalesRevenue[Tekući period]),0) -> 0 | I54: =IFERROR(Porez[[#This Row],[Tekući period]]/Porez[[#This Row],[Prethodni period]]-1,0) -> 0 | J54: =IFERROR(Porez[[#This Row],[Tekući period]]/Porez[[#This Row],[Budžet]]-1,0) -> 0
B55: Ostali porezi (navesti) | H55: =IFERROR(Porez[[#This Row],[Tekući period]]/SUBTOTAL(109,SalesRevenue[Tekući period]),0) -> 0 | I55: =IFERROR(Porez[[#This Row],[Tekući period]]/Porez[[#This Row],[Prethodni period]]-1,0) -> 0 | J55: =IFERROR(Porez[[#This Row],[Tekući period]]/Porez[[#This Row],[Budžet]]-1,0) -> 0
B56: Drugi prihod | D56: =SUBTOTAL(109,Porez[Prethodni period]) -> 0 | E56: =SUBTOTAL(109,Porez[Budžet]) -> 32 | F56: =SUBTOTAL(109,Porez[Tekući period]) -> 30 | H56: =IFERROR(Porez[[#Totals],[Tekući period]]/SUBTOTAL(109,SalesRevenue[Tekući period]),0) -> 66.7% | I56: =IFERROR(Porez[[#Totals],[Tekući period]]/Porez[[#Totals],[Prethodni period]]-1,0) -> 0 | J56: =IFERROR(Porez[[#Totals],[Tekući period]]/Porez[[#Totals],[Budžet]]-1,0) -> -6.3%
B58: Neto dohodak | D58: =D47+D49-Porez[[#Totals],[Prethodni period]] -> 40 | E58: =E47+E49-Porez[[#Totals],[Prethodni period]] -> -45 | F58: =F47+F49-Porez[[#Totals],[Prethodni period]] -> -32 | H58: =IFERROR(F58/SUBTOTAL(109,SalesRevenue[Tekući period]),0) -> -71.1% | I58: =IFERROR(IF(D58=F58,0,IF(F58>D58,ABS((F58/D58)-1),IF(AND(F58<D58,D58<0),-((F58/D58)-1),(F58/D58)-1))),0) -> -180.0% | J58: =IFERROR(IF(E58=F58,0,IF(F58>E58,ABS((F58/E58)-1),IF(AND(F58<E58,E58<0),-((F58/E58)-1),(F58/E58)-1))),0) -> 28.9%
B59: Bruto marža | D59: =D18/SUM(SalesRevenue[Prethodni period]) -> 100.0% | E59: =E18/SUM(SalesRevenue[Budžet]) -> 86.0% | F59: =F18/SUM(SalesRevenue[Tekući period]) -> 84.4%
B60: Prihod od prodaje | D60: =D58/SUM(SalesRevenue[Prethodni period]) -> 100.0% | E60: =E58/SUM(SalesRevenue[Budžet]) -> -90.0% | F60: =F58/SUM(SalesRevenue[Tekući period]) -> -71.1%
